[Event "WYCC 2018 G16"]
[Site "Halkidiki"]
[Date "2018.10.24"]
[Round "6"]
[White "Jarocka, Liwia"]
[Black "Peycheva, Gergana"]
[Result "1/2-1/2"]
[ECO "C06"]
[WhiteElo "1990"]
[BlackElo "2152"]
[Annotator "NA"]
[PlyCount "47"]
[EventDate "2018.10.20"]
[EventType "swiss"]
[EventCountry "GRE"]
[SourceTitle "playchess.com"]
[Source "ChessBase"]
[SourceQuality "1"]
[TimeControl "40/5400+30:1800+30"]

1. e4 {[%emt 0:00:00]} e6 {[%emt 0:00:00]} 2. d4 {[%emt 0:00:00]} d5 {[%emt 0:00:30]} 3. Nd2 {[%emt 0:00:08]} Nf6 {[%emt 0:00:40]} 4. e5 {[%emt 0:00:11]} Nfd7 {[%emt 0:00:45]} 5. Bd3 {[%emt 0:00:07]} c5 {[%emt 0:00:50]} 6. c3 {[%emt 0:00:08]} Nc6 {[%emt 0:01:15]} 7. Ne2 {[%emt 0:00:14]} cxd4 {[%emt 0:00:49]} 8. cxd4 {[%emt 0:00:05]} f6 {[%emt 0:01:29]} 9. exf6 {[%emt 0:00:11]} Nxf6 {[%emt 0:01:17]} 10. Nf3 {[%emt 0:00:35]} Bd6 {[%emt 0:00:58]} 11. O-O {[%emt 0:00:16]} Qc7 {[%emt 0:00:54]} 12. Bg5 {[%emt 0:00:29]} O-O {[%emt 0:03:08]} 13. Bh4 {[%emt 0:00:37]} Bd7 {[%emt 0:03:51]} 14. Bg3 {[%emt 0:01:33]} Nh5 {[%emt 0:03:18]} 15. Qc2 {[%emt 0:08:06]} h6 {[%emt 0:10:27]} 16. Bxd6 {[%emt 0:02:52]} Qxd6 {[%emt 0:00:06]} 17. Qd2 {[%emt 0:04:13]} Rxf3 {[%emt 0:07:40]} 18. gxf3 $15 {[%emt 0:00:24]} Rf8 {[%emt 0:00:21]} 19. Bb5 {[%emt 0:04:57]} Rxf3 {[%emt 0:05:23]} 20. Bxc6 {[%emt 0:01:10]} Bxc6 {[%emt 0:01:26]} 21. Rac1 {[%emt 0:09:15]} Nf6 {[%emt 0:12:44]} 22. Ng3 {[%emt 0:06:50]} Ne4 {[%emt 0:05:20]} 23. Qe2 {[%emt 0:02:47]} Rf4 {[%emt 0:06:55]} 24. Rc2 {[%emt 0:17:03]} 1/2-1/2

[Event "WYCC 2018 G16"]
[Site "Halkidiki"]
[Date "2018.10.24"]
[Round "6"]
[White "Zhang, Xiao"]
[Black "Hilario, Aleyla"]
[Result "0-1"]
[ECO "D17"]
[WhiteElo "1980"]
[BlackElo "2175"]
[Annotator "NA"]
[PlyCount "104"]
[EventDate "2018.10.20"]
[EventType "swiss"]
[EventCountry "GRE"]
[SourceTitle "playchess.com"]
[Source "ChessBase"]
[SourceQuality "1"]
[TimeControl "40/5400+30:1800+30"]

1. d4 {[%emt 0:00:00]} d5 {[%emt 0:00:24]} 2. c4 {[%emt 0:00:00]} c6 {[%emt 0:00:04]} 3. Nf3 {[%emt 0:00:00]} Nf6 {[%emt 0:00:05]} 4. Nc3 {[%emt 0:00:00]} dxc4 {[%emt 0:00:06]} 5. a4 {[%emt 0:00:00]} Bf5 {[%emt 0:00:07]} 6. Ne5 {[%emt 0:00:14]} e6 {[%emt 0:01:05]} 7. f3 {[%emt 0:01:41]} Bb4 {[%emt 0:05:10]} 8. Kf2 {[%emt 0:01:51] D17: Slav Defence: 5 a4 Bf5: Lines with 6 Nh4 and 6 Ne5} Nbd7 {[%emt 0:13:52]} 9. Nxc4 {[%emt 0:01:49]} h6 $146 {[%emt 0:02:23]} ({Predecessor:} 9... O-O 10. e4 Bg6 11. Be3 Qe7 12. Qb3 c5 13. Na2 cxd4 14. Qxb4 dxe3+ 15. Nxe3 Nc5 {0-1 (25) L'Ami,E (2606)-Van Wely,L (2658) playchess.com INT 2016}) 10. e4 {[%emt 0:08:43]} Bh7 {[%emt 0:01:23]} 11. Bd3 {[%emt 0:03:25]} O-O {[%emt 0:11:01]} 12. Rf1 {[%emt 0:08:03]} e5 {[%emt 0:10:38]} 13. Be3 {[%emt 0:11:26]} exd4 {[%emt 0:02:25]} 14. Bxd4 {[%emt 0:00:05]} Nc5 {[%emt 0:00:38]} 15. Bc2 {[%emt 0:00:55]} Ne6 {[%emt 0:00:31]} 16. Be3 {[%emt 0:01:57]} Qc7 {[%emt 0:07:26]} 17. Kg1 {[%emt 0:09:33]} Rfd8 {[%emt 0:00:14]} 18. Qc1 {[%emt 0:00:38]} Nd4 {[%emt 0:00:28]} 19. Bd1 {[%emt 0:01:38]} b5 {[%emt 0:04:39]} 20. Nd2 {[%emt 0:03:35]} a6 {[%emt 0:08:23]} 21. Nb3 {[%emt 0:02:27]} Ne6 {[%emt 0:00:16]} 22. Be2 {[%emt 0:00:54]} Bd6 {[%emt 0:05:16]} 23. g3 {[%emt 0:21:07] [#]} h5 $11 {[%emt 0:02:56]} (23... b4 $1 $19 {[%cal Rb4c3]} 24. Na2 {[#]} Bxg3 $1 {[%mdl 512]}) 24. Bf2 {[%emt 0:03:05]} h4 {[%emt 0:00:27]} 25. Kg2 {[%emt 0:00:46]} b4 {[%emt 0:03:25]} 26. Na2 {[%emt 0:00:43]} Nh5 {[%emt 0:00:49]} 27. Qe1 {[%emt 0:01:23]} Qd7 {[%emt 0:02:27]} 28. g4 {[%emt 0:04:20]} Nef4+ {[%emt 0:00:55]} 29. Kh1 {[%emt 0:00:13]} Qxg4 {[%emt 0:00:19]} 30. Rg1 {[%emt 0:02:42]} Qh3 {[%emt 0:02:40]} 31. Qf1 {[%emt 0:00:51]} Nd3 {[%emt 0:01:20]} 32. Rg2 {[%emt 0:04:12]} Nxf2+ {[%emt 0:09:14]} 33. Qxf2 {[%emt 0:00:06]} Ng3+ {[%emt 0:01:12]} 34. Kg1 {[%emt 0:00:15]} Nxe2+ {[%emt 0:00:05]} 35. Qxe2 {[%emt 0:00:03]} Qe6 {[%emt 0:00:30]} 36. Qe3 {[%emt 0:03:54]} h3 {[%emt 0:01:04]} 37. Rg5 {[%emt 0:02:39]} Qh6 {[%emt 0:01:13]} 38. f4 {[%emt 0:01:48]} f6 {[%emt 0:00:50]} 39. Rg4 {[%emt 0:00:13]} f5 {[%emt 0:00:26]} 40. exf5 {[%emt 0:00:00]} Bxf5 {[%emt 0:00:00]} 41. Rg5 {[%emt 0:00:41]} Qf6 {[%emt 0:00:33]} 42. Rf1 {[%emt 0:03:27]} Re8 {[%emt 0:02:58]} 43. Qg3 {[%emt 0:10:33]} Re2 {[%emt 0:01:15]} 44. Qf3 {[%emt 0:01:06]} Rxb2 {[%emt 0:01:14]} 45. Qxc6 {[%emt 0:01:32]} Rd8 {[%emt 0:04:27]} 46. Nac1 {[%emt 0:03:27]} Be6 {[%emt 0:08:52]} 47. Rg3 {[%emt 0:04:40]} Qf5 {[%emt 0:13:32]} 48. Rd3 {[%emt 0:07:09]} Qg6+ {[%emt 0:03:22]} 49. Rg3 {[%emt 0:00:22]} Qc2 {[%emt 0:00:37]} 50. Qxc2 {[%emt 0:00:30]} Rxc2 {[%emt 0:00:03]} 51. Rg5 {[%emt 0:01:49]} Bc4 {[%emt 0:00:21]} 52. Rf2 {[%emt 0:02:39]} Bxf4 {[%emt 0:00:32]} 0-1

[Event "WYCC 2018 G16"]
[Site "Halkidiki"]
[Date "2018.10.24"]
[Round "6"]
[White "Sanskriti Goyal"]
[Black "Bania, Eleni"]
[Result "1-0"]
[ECO "A01"]
[WhiteElo "1971"]
[BlackElo "1454"]
[Annotator "NA"]
[PlyCount "93"]
[EventDate "2018.10.20"]
[EventType "swiss"]
[EventCountry "GRE"]
[SourceTitle "playchess.com"]
[Source "ChessBase"]
[SourceQuality "1"]
[TimeControl "40/5400+30:1800+30"]

1. b3 {[%emt 0:00:00]} e5 {[%emt 0:00:00]} 2. Bb2 {[%emt 0:00:00]} Nc6 {[%emt 0:00:00]} 3. c4 {[%emt 0:00:05]} Nf6 {[%emt 0:04:42]} 4. e3 {[%emt 0:01:09]} Bd6 {[%emt 0:10:31]} 5. a3 {[%emt 0:06:12]} O-O $11 {[%emt 0:04:34]} 6. Qc2 {[%emt 0:06:38]} Qe7 {[%emt 0:08:21]} 7. d3 {[%emt 0:04:38]} Nd8 {[%emt 0:08:11]} 8. Nf3 {[%emt 0:10:12]} c6 {[%emt 0:04:01]} 9. Nbd2 {[%emt 0:05:58]} Bc7 {[%emt 0:01:21]} 10. c5 {[%emt 0:08:47]} Re8 {[%emt 0:06:25]} 11. Rc1 {[%emt 0:07:30]} h6 {[%emt 0:08:01]} 12. Be2 {[%emt 0:03:53]} Nh7 {[%emt 0:04:56]} 13. d4 {[%emt 0:09:47]} exd4 {[%emt 0:03:12]} 14. Nxd4 {[%emt 0:00:15]} Ne6 {[%emt 0:02:29]} 15. Nf5 {[%emt 0:04:21]} Qd8 {[%emt 0:04:04]} 16. Ne4 {[%emt 0:08:10]} Rf8 {[%emt 0:15:24]} 17. Bc4 {[%emt 0:01:22]} f6 {[%emt 0:03:13]} 18. Ned6 {[%emt 0:04:02]} Bxd6 {[%emt 0:04:43]} 19. cxd6 {[%emt 0:00:15]} Kh8 {[%emt 0:01:16]} 20. h4 {[%emt 0:01:08]} Qe8 {[%emt 0:02:09]} 21. Ne7 {[%emt 0:05:09]} Rf7 {[%emt 0:00:30]} 22. Be2 {[%emt 0:00:31]} Rxe7 {[%emt 0:00:54]} 23. dxe7 {[%emt 0:00:02]} Qxe7 {[%emt 0:00:13]} 24. Rh3 {[%emt 0:02:40]} d5 {[%emt 0:00:50]} 25. Rg3 {[%emt 0:00:35]} Bd7 {[%emt 0:00:41]} 26. Kf1 {[%emt 0:00:44]} Be8 {[%emt 0:01:11]} 27. b4 {[%emt 0:00:51]} a6 {[%emt 0:00:20]} 28. e4 {[%emt 0:00:28]} dxe4 {[%emt 0:01:02]} 29. Qxe4 {[%emt 0:00:10]} Bf7 {[%emt 0:00:19]} 30. Re1 {[%emt 0:00:29]} Qc7 {[%emt 0:00:44]} 31. Bc4 {[%emt 0:01:28]} Re8 {[%emt 0:00:33]} 32. Qg4 {[%emt 0:00:21]} Qd7 {[%emt 0:00:35]} 33. f4 {[%emt 0:02:31]} Nhf8 {[%emt 0:00:26]} 34. f5 {[%emt 0:00:19]} Ng5 {[%emt 0:00:34]} 35. hxg5 {[%emt 0:00:21]} Bxc4+ {[%emt 0:00:30]} 36. Qxc4 {[%emt 0:00:30]} Qxf5+ {[%emt 0:00:06]} 37. Rf3 {[%emt 0:00:10]} Rxe1+ {[%emt 0:00:46]} 38. Kxe1 {[%emt 0:00:02]} Qxg5 {[%emt 0:00:12]} 39. g3 {[%emt 0:03:10]} Ng6 {[%emt 0:00:43]} 40. Qe4 {[%emt 0:00:00]} Qh5 {[%emt 0:00:00]} 41. Kd2 {[%emt 0:09:44]} a5 {[%emt 0:04:34]} 42. Kc2 {[%emt 0:02:21]} axb4 {[%emt 0:01:00]} 43. axb4 {[%emt 0:00:07]} Ne7 {[%emt 0:02:27]} 44. Re3 {[%emt 0:00:36]} Ng6 {[%emt 0:04:11]} 45. Bxf6 {[%emt 0:01:32]} Qh2+ {[%emt 0:03:19]} 46. Re2 {[%emt 0:00:10]} Qxg3 {[%emt 0:00:35]} 47. Rg2 {[%emt 0:00:15]} 1-0

[Event "WYCC 2018 G16"]
[Site "Halkidiki"]
[Date "2018.10.24"]
[Round "6"]
[White "Ros Alonso, Joana"]
[Black "Schulze, Lara"]
[Result "0-1"]
[ECO "C07"]
[WhiteElo "1952"]
[BlackElo "2122"]
[Annotator "NA"]
[PlyCount "62"]
[EventDate "2018.10.20"]
[EventType "swiss"]
[EventCountry "GRE"]
[SourceTitle "playchess.com"]
[Source "ChessBase"]
[SourceQuality "1"]
[TimeControl "40/5400+30:1800+30"]

1. e4 {[%emt 0:00:00]} e6 {[%emt 0:00:00]} 2. d4 {[%emt 0:00:00]} d5 {[%emt 0:00:00]} 3. Nd2 {[%emt 0:00:00]} c5 {[%emt 0:00:00]} 4. Ngf3 {[%emt 0:00:04]} cxd4 {[%emt 0:00:00]} 5. Nxd4 {[%emt 0:00:11]} Nc6 {[%emt 0:00:00]} 6. Bb5 {[%emt 0:00:08]} Bd7 {[%emt 0:00:03]} 7. Nxc6 {[%emt 0:00:12]} bxc6 {[%emt 0:00:05]} 8. Bd3 {[%emt 0:00:09]} Qc7 {[%emt 0:00:08]} 9. Qe2 {[%emt 0:00:22] C07: French Tarrasch: 3...c5, 4 Ngf3 and 4 exd5 Qxd5} Ne7 {[%emt 0:00:12]} (9... Bd6 10. Nf3 dxe4 11. Qxe4 Nf6 12. Qh4 h6 13. Bd2 c5 14. O-O-O Rb8 15. Rhe1 Bc6 16. Bc3 Bxf3 17. gxf3 {1-0 (42) McShane,L (2644)-Howell,D (2702) Llandudno 2017}) 10. Nf3 {[%emt 0:01:11]} Ng6 {[%emt 0:00:12]} 11. O-O {[%emt 0:05:02]} Be7 {[%emt 0:00:34]} 12. c4 {[%emt 0:01:58]} dxe4 {[%emt 0:01:01]} 13. Qxe4 $146 {[%emt 0:03:01]} ({Predecessor:} 13. Bxe4 f5 14. Bc2 e5 15. Ng5 h6 16. Qh5 O-O 17. Qxg6 hxg5 18. Bxg5 {1-0 (29) Glaser,H (2395)-Pascual Gras,E (2430) ICCF corr 1984}) 13... O-O {[%emt 0:09:12]} 14. g3 {[%emt 0:07:42]} f5 {[%emt 0:04:05]} 15. Qe2 {[%emt 0:01:34]} e5 {[%emt 0:06:12]} 16. Bc2 {[%emt 0:01:20]} c5 {[%emt 0:07:16]} 17. h4 {[%emt 0:08:32]} e4 {[%emt 0:08:05]} 18. Nh2 {[%emt 0:05:24]} Bf6 {[%emt 0:13:07]} 19. h5 {[%emt 0:01:59]} Ne5 {[%emt 0:03:02]} 20. Bf4 {[%emt 0:01:53]} Be6 {[%emt 0:04:53]} 21. Rad1 {[%emt 0:13:47]} Qf7 {[%emt 0:03:26]} 22. b3 {[%emt 0:06:49]} Nc6 {[%emt 0:01:42]} 23. Bb1 {[%emt 0:16:19]} Nd4 {[%emt 0:03:17]} 24. Qe3 $19 {[%emt 0:04:26]} Qxh5 {[%emt 0:03:43]} 25. f3 {[%emt 0:04:36]} Rad8 {[%emt 0:07:55]} 26. Rd2 {[%emt 0:10:07]} g5 {[%emt 0:06:47]} 27. Bc7 {[%emt 0:03:06]} Nxf3+ {[%emt 0:04:32]} 28. Nxf3 {[%emt 0:00:36]} Rxd2 {[%emt 0:00:49]} 29. Qxd2 {[%emt 0:00:41]} exf3 {[%emt 0:00:17]} 30. Qh2 {[%emt 0:01:18]} Bd4+ {[%emt 0:04:33]} 31. Kh1 {[%emt 0:00:08]} Qg4 {[%emt 0:03:44]} 0-1

[Event "WYCC 2018 G16"]
[Site "Halkidiki"]
[Date "2018.10.24"]
[Round "6"]
[White "Shanya Mishra"]
[Black "Sosa Suarez, Carla Cristina"]
[Result "1-0"]
[ECO "E06"]
[WhiteElo "1924"]
[BlackElo "2025"]
[Annotator "NA"]
[PlyCount "89"]
[EventDate "2018.10.20"]
[EventType "swiss"]
[EventCountry "GRE"]
[SourceTitle "playchess.com"]
[Source "ChessBase"]
[SourceQuality "1"]
[TimeControl "40/5400+30:1800+30"]

1. d4 {[%emt 0:00:00]} e6 {[%emt 0:00:00]} 2. c4 {[%emt 0:00:20]} Nf6 {[%emt 0:00:15]} 3. Nf3 {[%emt 0:00:14]} d5 {[%emt 0:00:06]} 4. g3 {[%emt 0:00:55]} Be7 {[%emt 0:00:10]} 5. Bg2 {[%emt 0:00:46]} O-O {[%emt 0:00:21]} 6. O-O {[%emt 0:00:54]} dxc4 {[%emt 0:00:36]} 7. Ne5 {[%emt 0:04:05]} Nc6 {[%emt 0:00:58]} 8. Nxc6 {[%emt 0:06:59]} bxc6 {[%emt 0:00:04]} 9. Qc2 {[%emt 0:02:53]} Rb8 {[%emt 0:07:28]} 10. Qxc4 {[%emt 0:02:40]} Rb4 {[%emt 0:01:37]} 11. Qc2 {[%emt 0:01:01]} Qxd4 {[%emt 0:08:21]} 12. Nc3 $11 {[%emt 0:08:57]} Qg4 {[%emt 0:11:27]} 13. b3 {[%emt 0:10:30]} Rb8 {[%emt 0:04:53]} 14. Be3 {[%emt 0:04:18]} a6 {[%emt 0:05:09]} 15. Rad1 {[%emt 0:04:24]} Qh5 {[%emt 0:04:57]} 16. f3 {[%emt 0:05:52]} e5 {[%emt 0:04:56]} 17. Bf2 {[%emt 0:01:15]} Be6 {[%emt 0:02:01]} 18. e4 {[%emt 0:01:55]} Nd7 {[%emt 0:05:03]} 19. Na4 {[%emt 0:04:30]} c5 {[%emt 0:15:10]} 20. Nxc5 {[%emt 0:02:58]} Nxc5 {[%emt 0:00:43]} 21. Bxc5 {[%emt 0:00:53]} Qg5 {[%emt 0:01:43]} 22. Qc1 {[%emt 0:10:09]} Rfd8 {[%emt 0:03:53]} 23. Be3 {[%emt 0:02:17]} Qf6 {[%emt 0:03:29]} 24. Qxc7 {[%emt 0:03:11]} h5 {[%emt 0:00:42]} 25. Rxd8+ {[%emt 0:02:03]} Rxd8 {[%emt 0:00:19]} 26. h4 {[%emt 0:03:25]} Rc8 {[%emt 0:01:09]} 27. Qb7 {[%emt 0:00:39]} Bc5 {[%emt 0:01:40]} 28. Bxc5 {[%emt 0:00:12]} Rxc5 {[%emt 0:00:02]} 29. Qxa6 {[%emt 0:00:23]} g5 {[%emt 0:01:05]} 30. Qe2 {[%emt 0:03:54]} gxh4 {[%emt 0:00:14]} 31. Qf2 {[%emt 0:00:20]} Qe7 {[%emt 0:00:46]} 32. gxh4 {[%emt 0:00:20]} Qc7 {[%emt 0:00:53]} 33. Qg3+ {[%emt 0:00:30]} Kf8 {[%emt 0:00:35]} 34. Kh2 {[%emt 0:03:07]} Rc2 {[%emt 0:01:39]} 35. Rf2 {[%emt 0:00:14]} Rc1 {[%emt 0:00:23]} 36. Qg5 {[%emt 0:00:47]} Qc5 {[%emt 0:00:38]} 37. Kg3 {[%emt 0:02:23]} Rc2 {[%emt 0:02:22]} 38. Rxc2 {[%emt 0:01:59]} Qxc2 {[%emt 0:00:02]} 39. Qxe5 {[%emt 0:00:14]} Qxa2 {[%emt 0:00:32]} 40. Qh8+ {[%emt 0:00:00]} Ke7 {[%emt 0:00:00]} 41. Qxh5 {[%emt 0:03:07]} Qxb3 {[%emt 0:00:45]} 42. Qg5+ {[%emt 0:04:21]} Kd7 {[%emt 0:00:14]} 43. h5 {[%emt 0:02:00]} Qc3 {[%emt 0:00:28]} 44. h6 {[%emt 0:01:53]} Qe1+ {[%emt 0:00:08]} 45. Kh2 {[%emt 0:00:08]} 1-0

[Event "WYCC 2018 G16"]
[Site "Halkidiki"]
[Date "2018.10.24"]
[Round "6"]
[White "Esadze, Tamari"]
[Black "Mikic, Ivana"]
[Result "1-0"]
[ECO "C95"]
[WhiteElo "1911"]
[BlackElo "1783"]
[Annotator "NA"]
[PlyCount "75"]
[EventDate "2018.10.20"]
[EventType "swiss"]
[EventCountry "GRE"]
[SourceTitle "playchess.com"]
[Source "ChessBase"]
[SourceQuality "1"]
[TimeControl "40/5400+30:1800+30"]

1. e4 {[%emt 0:00:00]} e5 {[%emt 0:00:00]} 2. Nf3 {[%emt 0:00:00]} Nc6 {[%emt 0:00:00]} 3. Bb5 {[%emt 0:00:00]} a6 {[%emt 0:00:10]} 4. Ba4 {[%emt 0:00:00]} Nf6 {[%emt 0:00:10]} 5. O-O {[%emt 0:00:00]} Be7 {[%emt 0:00:07]} 6. Re1 {[%emt 0:00:02]} b5 {[%emt 0:00:10]} 7. Bb3 {[%emt 0:00:03]} d6 {[%emt 0:00:07]} 8. c3 {[%emt 0:00:10]} O-O {[%emt 0:00:09]} 9. h3 {[%emt 0:00:08]} Nb8 {[%emt 0:00:18]} 10. d4 {[%emt 0:00:31]} Nbd7 {[%emt 0:00:26]} 11. Nbd2 {[%emt 0:00:21]} c5 {[%emt 0:00:12]} 12. d5 {[%emt 0:02:09]} Re8 {[%emt 0:00:54]} 13. Nf1 {[%emt 0:01:43]} Bf8 {[%emt 0:00:51]} 14. Ng3 {[%emt 0:00:15]} g6 {[%emt 0:00:24]} 15. Be3 {[%emt 0:06:29]} Bg7 {[%emt 0:04:08]} 16. Qd2 {[%emt 0:01:49]} Qc7 {[%emt 0:07:28]} 17. Nh4 {[%emt 0:09:17]} Bb7 {[%emt 0:03:49]} 18. Bh6 {[%emt 0:03:50]} Bh8 {[%emt 0:05:28]} 19. Nhf5 {[%emt 0:06:47]} c4 {[%emt 0:08:46]} 20. Bc2 {[%emt 0:03:40]} Nb6 {[%emt 0:04:10]} 21. Qg5 {[%emt 0:08:32]} Bc8 {[%emt 0:04:57]} 22. Re3 {[%emt 0:06:40]} Bxf5 {[%emt 0:05:55]} 23. Nxf5 {[%emt 0:00:12]} Qd8 {[%emt 0:02:58]} 24. Rg3 {[%emt 0:08:02]} Nc8 {[%emt 0:06:02]} 25. h4 {[%emt 0:09:34]} Nd7 {[%emt 0:01:44]} 26. Qxd8 {[%emt 0:10:01]} Rxd8 {[%emt 0:00:11]} 27. a4 {[%emt 0:00:07]} Ndb6 {[%emt 0:02:19]} 28. h5 {[%emt 0:06:00]} Bf6 {[%emt 0:08:32]} 29. Be3 {[%emt 0:02:18]} Rd7 {[%emt 0:04:52]} 30. a5 {[%emt 0:00:45]} Kh8 {[%emt 0:02:08]} 31. Nh6 {[%emt 0:01:21]} Nxd5 {[%emt 0:05:25]} 32. exd5 {[%emt 0:00:06]} Bg7 {[%emt 0:00:55]} 33. hxg6 {[%emt 0:00:25]} hxg6 {[%emt 0:02:28]} 34. Rh3 {[%emt 0:01:06]} Bxh6 {[%emt 0:01:46]} 35. Bxh6 {[%emt 0:00:05]} Kg8 {[%emt 0:01:16]} 36. f4 {[%emt 0:01:14]} Ne7 {[%emt 0:02:12]} 37. Bg5 {[%emt 0:01:33]} exf4 {[%emt 0:01:11]} 38. Bf6 {[%emt 0:01:59]} 1-0

[Event "WYCC 2018 G16"]
[Site "Halkidiki"]
[Date "2018.10.24"]
[Round "6"]
[White "Xing, Ashley"]
[Black "Hercog, Nusa"]
[Result "0-1"]
[ECO "D36"]
[WhiteElo "1889"]
[BlackElo "2017"]
[Annotator "NA"]
[PlyCount "56"]
[EventDate "2018.10.20"]
[EventType "swiss"]
[EventCountry "GRE"]
[SourceTitle "playchess.com"]
[Source "ChessBase"]
[SourceQuality "1"]
[TimeControl "40/5400+30:1800+30"]

1. d4 {[%emt 0:00:00]} d5 {[%emt 0:00:00]} 2. c4 {[%emt 0:00:00]} e6 {[%emt 0:00:00]} 3. Nc3 {[%emt 0:00:00]} Nf6 {[%emt 0:00:00]} 4. cxd5 {[%emt 0:00:08]} exd5 {[%emt 0:00:06]} 5. Bg5 {[%emt 0:00:13]} c6 {[%emt 0:00:11]} 6. Qc2 {[%emt 0:00:32]} Be7 {[%emt 0:00:36]} 7. e3 {[%emt 0:00:29]} Nbd7 {[%emt 0:00:21]} 8. Bd3 {[%emt 0:00:29]} h6 {[%emt 0:00:20]} 9. Bh4 {[%emt 0:00:18]} O-O {[%emt 0:00:14]} 10. Nge2 {[%emt 0:00:18]} Re8 {[%emt 0:00:29]} 11. f3 {[%emt 0:06:28]} c5 {[%emt 0:20:10]} 12. O-O {[%emt 0:05:31]} a6 {[%emt 0:06:24]} 13. a4 $11 {[%emt 0:03:43]} Qc7 {[%emt 0:05:01]} 14. Bf2 {[%emt 0:09:34]} Bd6 {[%emt 0:05:35]} 15. Kh1 {[%emt 0:04:15]} b6 {[%emt 0:03:28]} 16. Rad1 {[%emt 0:06:32]} Bb7 {[%emt 0:01:43]} 17. Bf5 {[%emt 0:07:24]} Nf8 {[%emt 0:07:02]} 18. Rfe1 {[%emt 0:06:55]} g6 {[%emt 0:02:27]} 19. Bh3 {[%emt 0:01:18]} N8h7 {[%emt 0:03:07]} 20. g3 {[%emt 0:05:18]} Ng5 {[%emt 0:02:56]} 21. Bg2 {[%emt 0:00:09]} Rad8 {[%emt 0:02:32]} 22. h4 {[%emt 0:16:17]} Ne6 {[%emt 0:06:11]} 23. Nf4 {[%emt 0:01:24]} cxd4 {[%emt 0:03:10]} 24. Nxe6 {[%emt 0:00:18]} Rxe6 {[%emt 0:00:14]} 25. Rxd4 {[%emt 0:03:12]} Bxg3 {[%emt 0:03:43]} 26. Bh3 {[%emt 0:02:28]} Ree8 {[%emt 0:02:55]} 27. Red1 {[%emt 0:04:41]} Be5 {[%emt 0:05:21]} 28. R4d2 {[%emt 0:00:27]} d4 0-1

[Event "WYCC 2018 G16"]
[Site "Halkidiki"]
[Date "2018.10.24"]
[Round "6"]
[White "Skaslien, Ingrid"]
[Black "Plaza Reino, Mercedes"]
[Result "0-1"]
[ECO "D00"]
[WhiteElo "1885"]
[BlackElo "1727"]
[Annotator "NA"]
[PlyCount "54"]
[EventDate "2018.10.20"]
[EventType "swiss"]
[EventCountry "GRE"]
[SourceTitle "playchess.com"]
[Source "ChessBase"]
[SourceQuality "1"]
[TimeControl "40/5400+30:1800+30"]

1. d4 {[%emt 0:00:00]} d5 {[%emt 0:00:00]} 2. Bg5 {[%emt 0:00:00]} f6 {[%emt 0:00:00]} 3. Bh4 {[%emt 0:00:02]} Nh6 {[%emt 0:00:07]} 4. e3 {[%emt 0:00:57]} Nf5 {[%emt 0:00:33]} 5. Bg3 {[%emt 0:04:50]} h5 {[%emt 0:00:13]} 6. h4 {[%emt 0:16:42]} Nxg3 {[%emt 0:00:20]} 7. fxg3 {[%emt 0:00:07]} Qd6 {[%emt 0:00:19]} 8. Kf2 {[%emt 0:01:35]} e5 {[%emt 0:19:54]} 9. c3 {[%emt 0:05:14]} Be6 {[%emt 0:04:18]} 10. Be2 {[%emt 0:06:03]} Bf7 {[%emt 0:02:04]} 11. Nd2 {[%emt 0:05:39]} Nd7 {[%emt 0:01:20]} 12. Ngf3 {[%emt 0:01:01]} O-O-O {[%emt 0:03:48]} 13. a4 {[%emt 0:05:26]} g6 {[%emt 0:03:55]} 14. Re1 {[%emt 0:08:42]} Bh6 {[%emt 0:01:00]} 15. Nf1 {[%emt 0:08:09]} g5 {[%emt 0:13:48]} 16. Qb3 Rhg8 {[%emt 0:05:07]} 17. Bd1 {[%emt 0:01:04]} Rg7 {[%emt 0:06:26]} 18. Kg1 {[%emt 0:02:18]} Rdg8 {[%emt 0:02:00]} 19. Re2 {[%emt 0:00:55]} Be6 {[%emt 0:02:21]} 20. N3h2 {[%emt 0:03:29]} gxh4 {[%emt 0:02:45]} 21. gxh4 {[%emt 0:01:36]} Bf5 {[%emt 0:05:21]} 22. Rf2 {[%emt 0:07:42]} Qe6 23. Bc2 {[%emt 0:02:00]} Bh3 {[%emt 0:02:25]} 24. g3 {[%emt 0:00:30]} e4 {[%emt 0:12:21]} 25. Re1 {[%emt 0:03:42]} Qd6 {[%emt 0:01:12]} 26. Kh1 {[%emt 0:05:21]} Rxg3 {[%emt 0:01:47]} 27. Nxg3 {[%emt 0:01:05]} Qxg3 {[%emt 0:00:10]} 0-1

[Event "WYCC 2018 G16"]
[Site "Halkidiki"]
[Date "2018.10.24"]
[Round "6"]
[White "Tejasvi M"]
[Black "Golsta, Ramona"]
[Result "1/2-1/2"]
[ECO "B22"]
[WhiteElo "1869"]
[BlackElo "1681"]
[Annotator "NA"]
[PlyCount "92"]
[EventDate "2018.10.20"]
[EventType "swiss"]
[EventCountry "GRE"]
[SourceTitle "playchess.com"]
[Source "ChessBase"]
[SourceQuality "1"]
[TimeControl "40/5400+30:1800+30"]

1. e4 {[%emt 0:00:00]} c5 {[%emt 0:00:00]} 2. c3 {[%emt 0:00:09]} d5 {[%emt 0:00:14]} 3. exd5 {[%emt 0:00:09]} Qxd5 {[%emt 0:00:08]} 4. d4 {[%emt 0:00:07]} g6 {[%emt 0:01:08]} 5. Nf3 {[%emt 0:00:13]} Nc6 {[%emt 0:00:23]} 6. Be3 {[%emt 0:01:35]} Bg7 {[%emt 0:03:53]} 7. Na3 {[%emt 0:03:55]} cxd4 {[%emt 0:11:12]} 8. Nb5 {[%emt 0:09:22]} Qd8 {[%emt 0:02:17]} 9. Nbxd4 {[%emt 0:05:56]} Nf6 {[%emt 0:03:13]} 10. Nxc6 {[%emt 0:05:46]} Qxd1+ {[%emt 0:01:13]} 11. Rxd1 {[%emt 0:00:08]} bxc6 {[%emt 0:00:11]} 12. Nd4 {[%emt 0:09:24]} Bb7 {[%emt 0:06:01]} 13. Nb3 {[%emt 0:10:17]} O-O {[%emt 0:09:38]} 14. Be2 {[%emt 0:05:24]} Nd5 {[%emt 0:09:27]} 15. Bc5 {[%emt 0:02:02]} a5 {[%emt 0:01:17]} 16. Ba3 {[%emt 0:09:26]} Ba6 {[%emt 0:04:18]} 17. Bxa6 {[%emt 0:09:12]} Rxa6 {[%emt 0:01:14]} 18. O-O {[%emt 0:01:04]} Re8 {[%emt 0:01:57]} 19. Rfe1 {[%emt 0:02:13]} e6 {[%emt 0:01:08]} 20. g3 {[%emt 0:06:15]} Rc8 {[%emt 0:04:07]} 21. Nc5 {[%emt 0:01:44]} Raa8 {[%emt 0:01:02]} 22. Ne4 {[%emt 0:01:23]} Rc7 {[%emt 0:05:34]} 23. Kf1 {[%emt 0:04:43]} Rb7 {[%emt 0:04:18]} 24. Nc5 {[%emt 0:03:59]} Rbb8 {[%emt 0:01:25]} 25. Kg2 {[%emt 0:01:45]} Ra7 {[%emt 0:02:26]} 26. Ne4 {[%emt 0:00:49]} Bf8 {[%emt 0:02:30]} 27. Bxf8 {[%emt 0:00:39]} Kxf8 {[%emt 0:00:21]} 28. Rd2 {[%emt 0:02:29]} a4 {[%emt 0:03:01]} 29. Nc5 {[%emt 0:01:57]} Ke7 {[%emt 0:01:10]} 30. a3 {[%emt 0:00:46]} Rb5 {[%emt 0:06:05]} 31. Nd3 {[%emt 0:01:03]} Rb8 {[%emt 0:03:54]} 32. Re4 {[%emt 0:00:25]} Rd8 {[%emt 0:02:12]} 33. Nb4 {[%emt 0:00:41]} Nxb4 {[%emt 0:03:36]} 34. Rxd8 {[%emt 0:00:01]} Kxd8 {[%emt 0:00:01]} 35. Rxb4 {[%emt 0:00:01]} Kc7 {[%emt 0:01:00]} 36. Kf3 {[%emt 0:00:31]} c5 {[%emt 0:00:50]} 37. Rb5 {[%emt 0:01:14]} Kc6 {[%emt 0:00:08]} 38. c4 {[%emt 0:00:40]} Rd7 {[%emt 0:03:14]} 39. Ra5 {[%emt 0:00:14]} Rd2 {[%emt 0:01:04]} 40. Rxa4 {[%emt 0:00:00]} Rxb2 {[%emt 0:00:00]} 41. Ra7 {[%emt 0:01:18]} Rb3+ {[%emt 0:10:52]} 42. Ke4 {[%emt 0:10:36]} Rc3 {[%emt 0:01:00]} 43. Rxf7 {[%emt 0:00:34]} Rxc4+ {[%emt 0:00:46]} 44. Ke5 {[%emt 0:05:15]} Rc2 {[%emt 0:00:14]} 45. Ke4 {[%emt 0:04:24]} Rc4+ {[%emt 0:02:17]} 46. Ke5 {[%emt 0:00:04]} Rc2 {[%emt 0:00:08]} 1/2-1/2